bitfinex-derivatives/quotes_SOLF0:USTF0_20240923
["timestamp","ask_amount","ask_price","bid_price","bid_amount"]
[1727114140140,13.1191,143.71,143.66,9.64]
[1727114141023,13.1191,143.71,143.67,3.4797]
[1727114142037,13.1191,143.71,143.68,3.4797]
[1727114151048,9.64,143.71,143.68,3.4797]
[1727114151442,9.64,143.71,143.69,3.4795]
[1727114152052,13.1189,143.72,143.69,3.4795]
[1727114160755,4.81197241,143.79,143.71,9.64]
[1727114160955,9.64,143.77,143.73,9.60121189]
[1727114161358,13.1177,143.77,143.73,13.07951189]
[1727114162059,3.4777,143.77,143.73,13.07951189]
[1727114162362,3.4777,143.77,143.74,13.1182]
[1727114163863,3.51027241,143.79,143.75,9.64]
[1727114164056,9.64,143.8,143.75,9.64]
[1727114164253,3.4525964,143.79,143.76,3.4777]
[1727114166856,6.9296964,143.79,143.76,3.4777]
[1727114169358,3.4525964,143.79,143.76,3.4777]
[1727114169569,3.4769,143.8,143.77,13.1175]
[1727114169769,6.90928917,143.8,143.77,9.64]
[1727114170161,3.4771,143.79,143.76,3.4777]
[1727114170966,3.4771,143.79,143.75,9.64]
[1727114170967,9.64,143.77,143.7,83.16555097]
[1727114171175,9.64,143.76,143.7,83.16555097]
[1727114171465,9.64,143.76,143.7,92.80555097]
[1727114171769,3.4782,143.75,143.72,3.4787]
[1727114174367,3.4782,143.75,143.68,1.4046]
[1727114174368,9.64,143.73,143.59,6.9634]
[1727114174565,9.64,143.69,143.65,9.64]
[1727114174969,9.64,143.69,143.63,1.4126]
[1727114175177,3.51778001,143.73,143.65,9.64]
[1727114175469,3.4798,143.68,143.65,13.1203]
[1727114175767,3.503932,143.71,143.65,9.64]
[1727114175971,9.64,143.73,143.68,9.64]
[1727114176270,3.4791,143.71,143.68,13.1196]
[1727114176667,3.4793,143.7,143.68,9.64]
[1727114176872,9.64,143.71,143.68,9.64]
[1727114177468,13.1191,143.71,143.68,9.64]
[1727114179080,3.4793,143.7,143.67,3.4797]
[1727114179279,3.4793,143.7,143.67,13.1197]
[1727114179578,9.64,143.71,143.67,13.1197]
[1727114179767,13.1191,143.71,143.68,3.4797]
[1727114183076,3.4789,143.72,143.69,9.64]
[1727114183280,9.64,143.73,143.69,9.64]
[1727114183478,9.64,143.74,143.7,9.64]
[1727114183683,9.64,143.74,143.7,13.1191]
[1727114184475,9.64,143.73,143.7,13.1191]
[1727114184874,13.1185,143.73,143.7,3.4791]
[1727114185072,9.64,143.72,143.69,13.1194]
[1727114185373,9.64,143.71,143.69,3.4794]
[1727114190570,13.119,143.71,143.69,3.4794]
[1727114192174,3.479,143.71,143.69,3.4794]
[1727114193484,3.53720803,143.73,143.63,1.4126]
[1727114193485,9.64,143.7,143.63,1.4126]
[1727114193676,9.64,143.7,143.65,9.64]
[1727114194583,3.4795,143.69,143.67,3.4799]
[1727114194776,3.4795,143.69,143.65,9.64]
[1727114194777,9.64,143.71,143.66,9.64]
[1727114195177,3.4794,143.7,143.68,3.4797]
[1727114196985,3.4791,143.71,143.69,3.4794]
[1727114197187,3.4791,143.71,143.67,9.64]
[1727114197381,3.4791,143.71,143.68,3.4796]
[1727114198286,13.1191,143.71,143.68,3.4796]
[1727114201590,9.64,143.7,143.68,3.4796]
[1727114206896,9.64,143.69,143.67,3.4798]
[1727114207701,13.1195,143.69,143.67,3.4798]
[1727114209091,3.4795,143.69,143.67,3.4798]
[1727114211703,9.64,143.7,143.66,3.4801]
[1727114211895,9.64,143.7,143.63,1.4126]
[1727114211896,9.64,143.68,143.63,1.4126]
[1727114212203,9.64,143.68,143.63,11.0526]
[1727114212397,9.64,143.68,143.65,3.4803]
[1727114212398,3.4801,143.67,143.65,3.4803]
[1727114212590,9.64,143.68,143.63,11.0526]
[1727114213295,9.64,143.67,143.62,1.4457]
[1727114213603,9.64,143.63,143.59,4.69234117]
[1727114213804,79.25426479,143.7,143.59,4.69234117]
[1727114213805,9.64,143.61,143.59,4.69234117]
[1727114213991,13.1216,143.61,143.59,4.69234117]
[1727114214897,9.64,143.61,143.59,8.17414117]
[1727114215100,9.64,143.61,143.59,4.69234117]
[1727114216400,9.64,143.62,143.59,4.69234117]
[1727114217100,9.64,143.62,143.6,3.4815]
[1727114218100,9.64,143.62,143.61,3.4814]
[1727114220407,1.38,143.66,143.63,3.4809]
[1727114220702,9.64,143.65,143.63,3.4809]
[1727114221100,9.64,143.65,143.62,3.4811]
[1727114223121,9.64,143.65,143.63,3.4809]
[1727114223411,9.64,143.67,143.62,9.64]
[1727114223613,9.64,143.67,143.65,3.4803]
[1727114225915,9.64,143.67,143.66,3.4802]
[1727114227319,9.64,143.68,143.67,3.48]
[1727114228926,9.64,143.68,143.66,3.4801]
[1727114230015,9.64,143.7,143.66,9.64]
[1727114230422,9.64,143.7,143.67,3.4799]
[1727114232815,9.64,143.7,143.68,3.4797]
[1727114234225,9.64,143.7,143.69,3.4795]
[1727114235215,9.64,143.71,143.69,3.4795]
[1727114235631,9.64,143.71,143.7,3.4792]
[1727114236132,7.01863593,143.73,143.71,3.479]
[1727114236133,9.64,143.73,143.71,3.479]
[1727114237019,13.1187,143.73,143.7,3.4792]
[1727114237216,9.64,143.72,143.7,3.4792]
[1727114240925,13.1187,143.73,143.7,3.4792]
[1727114245429,9.64,143.71,143.65,9.64]
[1727114245634,9.64,143.7,143.65,9.64]
[1727114245934,9.64,143.7,143.68,3.4796]
[1727114246435,13.1193,143.7,143.68,3.4796]
[1727114257629,1.3316,143.75,143.68,9.64]
[1727114257837,1.3316,143.75,143.7,9.64]
[1727114258039,9.64,143.74,143.7,9.64]
[1727114258228,13.1184,143.74,143.71,3.4788]
[1727114258434,9.64,143.74,143.71,3.4788]
[1727114258935,9.64,143.73,143.71,3.4788]
[1727114262941,9.64,143.73,143.7,3.4791]
[1727114263849,9.64,143.72,143.7,3.4791]
[1727114264145,3.4783,143.74,143.7,3.4791]
[1727114264342,9.64,143.72,143.7,3.4791]
[1727114268441,3.4786,143.73,143.7,3.4791]
[1727114268842,9.64,143.72,143.7,3.4791]
[1727114269247,13.1188,143.72,143.69,3.4794]
[1727114269447,9.64,143.7,143.66,11.0574]
[1727114269850,9.64,143.68,143.67,3.4799]
[1727114271039,9.64,143.7,143.65,91.45721523]
[1727114271852,13.1191,143.71,143.66,9.64]
[1727114272749,13.1191,143.71,143.69,3.4794]
[1727114273855,9.64,143.7,143.68,3.4795]
[1727114274345,13.1193,143.7,143.68,3.4795]
[1727114274551,9.64,143.69,143.67,3.4798]
[1727114274749,9.64,143.68,143.67,3.4798]
[1727114276151,13.1197,143.69,143.67,3.4798]
[1727114276548,13.1197,143.68,143.63,1.3521]
[1727114276752,13.1197,143.68,143.63,10.9921]
[1727114277657,13.1197,143.68,143.66,3.4801]
[1727114277857,9.64,143.68,143.63,1.3521]
[1727114278048,9.64,143.68,143.64,9.64]
[1727114278742,9.64,143.68,143.67,3.48]
[1727114279953,13.1196,143.69,143.67,3.48]
[1727114280259,3.4796,143.69,143.67,3.48]
[1727114280557,9.64,143.69,143.68,3.4797]
[1727114281354,115.47638659,143.71,143.69,3.4795]
[1727114282256,9.64,143.71,143.69,3.4795]
[1727114282452,9.64,143.71,143.7,3.4792]
[1727114282760,9.64,143.72,143.68,9.64]
[1727114283054,9.64,143.74,143.72,3.4788]
[1727114284256,9.64,143.74,143.7,9.64]
[1727114284457,75.87719981,143.66,143.57,9.64]
[1727114284757,9.64,143.63,143.58,9.64]
[1727114285056,3.43708655,143.66,143.57,12.364]
[1727114285247,1.3035,143.73,143.59,9.64]
[1727114285248,9.64,143.65,143.59,9.64]
[1727114285452,7.0324155,143.64,143.59,9.64]
[1727114285645,9.64,143.63,143.57,12.364]
[1727114286556,9.64,143.63,143.57,2.724]
[1727114286557,3.4813,143.62,143.57,2.724]
[1727114286768,9.64,143.62,143.57,12.364]
[1727114287563,3.4813,143.62,143.57,15.8464]
[1727114288960,3.4815,143.61,143.57,15.8464]
[1727114289661,3.4815,143.61,143.57,12.364]
[1727114290959,3.4815,143.61,143.57,15.8464]
[1727114292862,3.4815,143.61,143.57,6.2064]
[1727114293265,3.4815,143.61,143.58,3.4821]
[1727114301968,13.1215,143.61,143.58,3.4821]
[1727114302167,3.4817,143.6,143.58,3.4821]
[1727114305870,109.3424065,143.7,143.57,12.364]
[1727114306074,9.64,143.62,143.58,9.64]
[1727114306576,13.1214,143.62,143.59,3.4818]
[1727114308372,13.1214,143.62,143.6,3.4816]
[1727114308569,13.121,143.63,143.58,9.64]
[1727114308879,13.121,143.63,143.59,1.3568]
[1727114309572,13.121,143.63,143.6,3.4815]
[1727114312175,13.1213,143.62,143.59,4.8386]
[1727114312580,13.1213,143.62,143.59,1.3568]
[1727114313673,13.1213,143.62,143.6,3.4816]
[1727114318986,9.64,143.62,143.61,3.4814]
[1727114319388,9.64,143.62,143.59,1.3568]
[1727114320776,13.1212,143.62,143.6,3.4816]
[1727114322693,3.47056774,143.67,143.62,3.4812]
[1727114322883,9.64,143.64,143.62,3.4812]
[1727114324487,13.1208,143.64,143.62,3.4812]
[1727114325090,13.1208,143.64,143.61,3.4813]
[1727114327387,3.4808,143.64,143.61,3.4813]
[1727114327583,9.64,143.63,143.61,3.4813]
[1727114328895,9.64,143.62,143.6,3.4816]
[1727114329093,9.64,143.61,143.57,2.724]
[1727114329394,109.3424065,143.7,143.57,2.724]
[1727114329395,9.64,143.6,143.57,2.724]
[1727114329785,9.64,143.58,143.57,2.724]
[1727114330391,9.64,143.58,143.57,6.2064]
[1727114331593,9.64,143.58,143.57,4.8199]
[1727114332999,9.64,143.58,143.57,3.4824]
[1727114333699,9.64,143.59,143.58,3.4821]
[1727114334199,9.64,143.61,143.59,3.4817]
[1727114337700,13.1215,143.61,143.59,3.4817]
[1727114338498,9.64,143.6,143.59,3.4817]
[1727114340713,13.1217,143.6,143.58,3.4821]
[1727114341810,9.64,143.6,143.59,3.4819]
[1727114342009,9.64,143.6,143.55,9.64]
[1727114342917,13.1217,143.6,143.58,3.482]
[1727114348528,13.1214,143.62,143.56,9.64]
[1727114349121,13.1214,143.62,143.59,3.4818]
[1727114350727,3.4814,143.61,143.59,3.4818]
[1727114351919,3.46885451,143.66,143.58,9.64]
[1727114352118,9.64,143.64,143.58,9.64]
[1727114352927,3.4811,143.63,143.58,9.64]
[1727114354830,3.4811,143.63,143.61,3.4814]
[1727114358935,13.1214,143.62,143.58,9.64]
[1727114359631,13.1214,143.62,143.6,3.4815]
[1727114361426,3.4814,143.62,143.6,3.4815]
[1727114361627,13.1214,143.62,143.6,3.4815]
[1727114372435,9.64,143.61,143.58,3.4821]
[1727114372737,9.64,143.6,143.57,1.3681]
[1727114372936,3.4823,143.58,143.54,2.7228]
[1727114373237,9.64,143.57,143.54,2.7228]
[1727114373739,9.64,143.57,143.55,3.4827]
[1727114374127,9.64,143.57,143.54,2.7228]
[1727114374642,9.64,143.57,143.55,3.4829]
[1727114375432,9.64,143.57,143.56,3.4826]
[1727114376339,3.4823,143.58,143.56,3.4826]
[1727114380241,13.1224,143.57,143.55,3.4828]
[1727114380441,9.64,143.56,143.54,1.4002]
[1727114380642,9.64,143.56,143.54,3.483]
[1727114381344,13.1226,143.56,143.54,3.483]
[1727114381932,9.64,143.56,143.54,3.483]
[1727114383242,9.64,143.56,143.55,3.4829]
[1727114386743,9.64,143.57,143.53,9.64]
[1727114388341,9.64,143.57,143.55,3.4827]
[1727114388942,13.1224,143.57,143.55,3.4827]
[1727114390247,13.1227,143.56,143.54,3.4829]
[1727114395342,13.1227,143.56,143.55,3.4829]
[1727114395343,9.64,143.56,143.55,3.4829]
[1727114396645,94.0386,143.69,143.55,9.64]
[1727114396845,9.64,143.61,143.55,9.64]
[1727114397052,94.0386,143.69,143.54,9.64]
[1727114397053,9.64,143.59,143.54,9.64]
[1727114398848,9.64,143.59,143.57,3.4823]
[1727114400254,9.64,143.58,143.56,3.4826]
[1727114400644,3.4821,143.59,143.54,9.64]
[1727114400956,13.1221,143.59,143.54,9.64]
[1727114401354,13.1222,143.58,143.52,1.4191]
[1727114401561,9.64,143.56,143.52,1.4191]
[1727114401855,9.64,143.56,143.55,3.4827]
[1727114406560,9.64,143.57,143.55,3.4827]
[1727114408452,9.64,143.57,143.56,3.4826]
[1727114409255,26.98196959,143.65,143.54,9.64]
[1727114409457,10.48832109,143.67,143.57,9.64]
[1727114409458,9.64,143.62,143.57,9.64]
[1727114409659,13.1213,143.62,143.57,9.64]
[1727114410358,9.64,143.62,143.6,3.4815]
[1727114410553,9.64,143.62,143.58,9.64]
[1727114410857,9.64,143.62,143.6,3.4815]
[1727114411759,9.64,143.62,143.61,3.4814]
[1727114412457,3.481,143.63,143.61,3.4814]
[1727114412659,13.1208,143.64,143.62,3.4812]
[1727114413255,3.4803,143.66,143.63,3.4808]
[1727114413459,9.64,143.66,143.63,3.4808]
[1727114413964,3.4806,143.65,143.63,3.4808]
[1727114414166,9.64,143.64,143.62,3.4811]
[1727114414772,13.1208,143.64,143.62,3.4811]
[1727114416463,3.4806,143.65,143.63,3.4809]
[1727114416768,13.1206,143.65,143.63,3.4809]
[1727114420869,9.64,143.65,143.61,3.4813]
[1727114421179,9.64,143.62,143.58,1.4156]
[1727114421460,9.64,143.6,143.58,1.4156]
[1727114422257,9.64,143.6,143.59,3.4818]
[1727114422458,9.64,143.63,143.59,9.64]
[1727114422660,9.64,143.63,143.58,11.0556]
[1727114422858,9.64,143.62,143.58,11.0556]
[1727114424768,9.64,143.62,143.6,3.4815]
[1727114425361,9.64,143.61,143.6,3.4815]
[1727114425572,9.64,143.61,143.59,3.4818]
[1727114425965,9.64,143.6,143.57,1.4601]
[1727114426268,9.64,143.59,143.57,4.9423]
[1727114426867,9.64,143.59,143.58,3.4822]
[1727114427865,9.64,143.6,143.59,3.4819]
[1727114428067,26.95689216,143.67,143.59,9.64]
[1727114428262,9.64,143.63,143.59,9.64]
[1727114428475,9.64,143.63,143.61,3.4813]
[1727114429069,3.4806,143.65,143.63,3.4809]
[1727114429375,9.64,143.65,143.63,3.4809]
[1727114430469,13.1206,143.65,143.63,3.4809]
[1727114433474,9.64,143.65,143.61,9.64]
[1727114433666,9.64,143.67,143.62,9.64]
[1727114433871,9.64,143.67,143.63,9.64]
[1727114434271,112.02468375,143.68,143.65,9.64]
[1727114434472,10.35991086,143.76,143.65,9.64]
[1727114434774,9.64,143.71,143.67,9.64]
[1727114435173,3.4793,143.7,143.68,3.4796]
[1727114435477,9.64,143.71,143.67,9.64]
[1727114435681,3.40401086,143.76,143.7,3.4792]
[1727114435975,9.64,143.74,143.69,9.64]
[1727114436179,102.38468375,143.82,143.72,9.64]
[1727114436180,3.47172022,143.77,143.72,9.64]
[1727114436376,102.38468375,143.82,143.72,9.64]
[1727114436377,9.64,143.76,143.72,9.64]
[1727114436681,26.90058926,143.8,143.76,3.4776]
[1727114436975,9.64,143.77,143.72,9.64]
[1727114437176,13.1177,143.77,143.73,3.4783]
[1727114437368,13.1177,143.77,143.72,9.64]
[1727114437973,13.1177,143.77,143.73,3.4785]
[1727114438180,9.64,143.75,143.7,9.64]
[1727114438373,9.64,143.74,143.69,9.64]
[1727114438877,13.1183,143.74,143.7,3.4791]
[1727114439280,13.1183,143.74,143.71,3.479]
[1727114439483,9.64,143.72,143.67,9.64]
[1727114440280,15.03,143.72,143.65,4.3679]
[1727114440980,3.4791,143.71,143.67,3.4798]
[1727114441178,3.4791,143.71,143.65,4.3679]
[1727114441179,15.03,143.72,143.65,19.3979]
[1727114441372,15.03,143.74,143.69,3.4795]
[1727114441880,3.4787,143.73,143.69,3.4795]
[1727114442082,15.03,143.74,143.68,3.4797]
[1727114442280,15.03,143.72,143.65,4.3679]
[1727114442782,3.4791,143.71,143.67,3.4798]
[1727114444077,3.4793,143.7,143.67,3.4798]
[1727114448581,3.479,143.71,143.68,3.4797]
[1727114450590,3.4793,143.7,143.68,3.4797]
[1727114450983,3.4793,143.7,143.56,87.08528846]
[1727114450984,15.03,143.7,143.56,87.08528846]
[1727114451180,15.03,143.69,143.59,19.3144]
[1727114451382,15.03,143.7,143.61,15.03]
[1727114451684,3.4798,143.68,143.65,3.4803]
[1727114451985,15.03,143.7,143.65,3.4803]
[1727114452188,3.4801,143.67,143.64,3.4806]
[1727114452482,15.03,143.69,143.64,3.4806]
[1727114452881,3.4801,143.67,143.64,3.4806]
[1727114453787,3.4799,143.68,143.61,15.03]
[1727114454287,3.4795,143.69,143.66,3.4801]
[1727114454482,3.4795,143.69,143.63,15.03]
[1727114454678,3.4795,143.69,143.64,2.8087]
[1727114454886,15.03,143.72,143.64,2.8087]
[1727114455087,15.03,143.72,143.64,17.8387]
[1727114455288,15.03,143.76,143.66,15.03]
[1727114455485,3.4785,143.73,143.7,3.4792]
[1727114455684,15.03,143.76,143.7,3.4792]
[1727114457490,15.03,143.74,143.69,3.4794]
[1727114457791,18.52662279,143.74,143.65,16.4071]
[1727114457993,3.4791,143.71,143.68,3.4796]
[1727114458292,15.03,143.72,143.65,1.3771]
[1727114459086,3.4794,143.7,143.68,3.4796]
[1727114459588,3.4781,143.75,143.72,3.4785]
[1727114460894,15.03,143.76,143.69,2.8485]
[1727114461196,15.03,143.74,143.69,2.8485]
[1727114461392,15.03,143.74,143.69,3.4793]
[1727114461393,3.4789,143.72,143.69,3.4793]
[1727114461593,15.03,143.7,143.61,19.0679]
[1727114462294,18.5094,143.7,143.61,19.0679]
[1727114462690,15.03,143.7,143.61,19.0679]
[1727114462895,3.4795,143.69,143.61,19.0679]
[1727114463491,15.03,143.7,143.61,4.0379]
[1727114463695,15.03,143.66,143.61,4.0379]
[1727114463891,3.4806,143.65,143.62,3.4811]
[1727114465198,15.03,143.66,143.61,4.0379]
[1727114465199,18.5103,143.66,143.63,3.4809]
[1727114466593,3.4802,143.67,143.64,3.4807]
[1727114467099,3.4802,143.67,143.61,19.0679]
[1727114467491,3.4798,143.68,143.61,19.0679]
[1727114467891,3.4798,143.68,143.65,3.4803]
[1727114468091,3.4798,143.68,143.61,19.0679]
[1727114468301,3.4796,143.69,143.62,15.03]
[1727114468488,3.4796,143.69,143.66,3.4801]
[1727114469500,15.03,143.71,143.66,3.4801]
[1727114469501,3.4797,143.68,143.66,3.4801]
[1727114470298,15.03,143.73,143.64,15.03]
[1727114470496,15.03,143.75,143.66,15.03]
[1727114470696,15.03,143.75,143.67,2.7751]
[1727114471102,3.4789,143.72,143.69,3.4794]
[1727114471299,3.4789,143.72,143.67,2.7751]
[1727114473096,3.4786,143.73,143.67,4.1312]
[1727114473406,3.4786,143.73,143.7,3.4791]
[1727114475014,3.4788,143.72,143.7,3.4791]
[1727114475194,15.03,143.75,143.67,4.1312]
[1727114475504,3.53119342,143.74,143.67,4.1312]
[1727114475709,3.4788,143.72,143.69,3.4794]
[1727114475907,15.03,143.75,143.67,4.1312]
[1727114476401,3.4787,143.73,143.7,3.4791]
[1727114477507,15.03,143.75,143.69,3.4794]
[1727114477713,15.03,143.75,143.67,4.1312]
[1727114478507,15.03,143.75,143.7,3.4791]
[1727114478508,3.4787,143.73,143.7,3.4791]
[1727114478696,15.03,143.77,143.68,15.03]
[1727114479400,3.4782,143.75,143.72,3.4786]
[1727114479706,15.03,143.77,143.72,3.4786]
[1727114480205,3.4784,143.74,143.72,3.4786]
[1727114480603,3.4782,143.75,143.68,15.03]
[1727114480909,102.32086622,143.79,143.7,15.03]
[1727114480910,15.03,143.79,143.7,15.03]
[1727114481407,15.03,143.79,143.72,3.4786]
[1727114481408,3.4782,143.75,143.72,3.4786]
[1727114481905,3.4782,143.75,143.7,15.03]
[1727114482499,3.4782,143.75,143.72,3.4786]
[1727114482708,3.4782,143.75,143.7,15.03]
[1727114483210,3.4783,143.74,143.68,15.03]
[1727114484808,3.4783,143.74,143.71,3.4789]
[1727114485407,15.03,143.75,143.7,3.4791]
[1727114485621,3.50549655,143.74,143.67,4.1312]
[1727114485817,15.03,143.73,143.68,3.4796]
[1727114486115,15.03,143.73,143.67,2.7751]
[1727114486298,15.03,143.71,143.63,75.62635198]
[1727114486500,3.4796,143.69,143.66,3.4802]
[1727114488907,3.4794,143.7,143.67,3.4799]
[1727114489108,3.53925344,143.72,143.64,15.03]
[1727114489707,15.03,143.73,143.64,15.03]
[1727114490208,3.4789,143.72,143.66,15.03]
[1727114490513,3.4789,143.72,143.69,3.4793]
[1727114493012,3.4789,143.72,143.7,3.4792]
[1727114493213,3.4786,143.73,143.67,2.7741]
[1727114493422,15.03,143.75,143.67,2.7741]
[1727114493606,15.03,143.77,143.68,16.4763]
[1727114494017,3.4783,143.74,143.68,16.4763]
[1727114494209,3.4783,143.74,143.71,3.4788]
[1727114495317,3.4781,143.75,143.72,3.4787]
[1727114498816,15.03,143.75,143.68,1.4463]
[1727114499420,15.03,143.75,143.69,3.4794]
[1727114499421,3.41594152,143.74,143.69,3.4794]
[1727114499926,3.479,143.71,143.69,3.4794]
[1727114500425,3.41594152,143.74,143.7,3.4792]
[1727114501922,3.4789,143.72,143.7,3.4792]
[1727114503123,3.4786,143.73,143.71,3.479]
[1727114503618,3.4789,143.72,143.69,3.4793]
[1727114503828,3.4789,143.72,143.67,2.7741]
[1727114504418,3.4789,143.72,143.69,3.4793]
[1727114504627,3.4789,143.72,143.67,2.7741]
[1727114505824,3.4789,143.72,143.7,3.4792]
[1727114506014,15.03,143.75,143.7,3.4792]
[1727114506015,3.4786,143.73,143.7,3.4792]
[1727114507820,3.4788,143.72,143.7,3.4792]
[1727114508821,3.4791,143.71,143.67,2.7741]
[1727114509123,15.03,143.73,143.67,2.7741]
[1727114509425,3.4792,143.71,143.68,3.4796]
[1727114510034,3.4792,143.71,143.69,3.4795]
[1727114510322,3.4789,143.72,143.67,2.7741]
[1727114510725,3.4787,143.73,143.67,2.7741]
[1727114511423,3.4787,143.73,143.7,3.479]
[1727114513828,18.5282246,143.74,143.69,3.4794]
[1727114514025,15.03,143.74,143.69,3.4794]
[1727114514421,3.4789,143.72,143.69,3.4794]
[1727114515026,3.4789,143.72,143.7,3.4792]
[1727114517632,3.4787,143.73,143.67,2.7741]
[1727114517832,15.03,143.76,143.67,2.7741]
[1727114519834,15.03,143.76,143.7,3.4791]
[1727114520226,15.03,143.78,143.68,15.03]
[1727114520426,12.54475772,143.77,143.68,15.03]
[1727114520735,15.03,143.78,143.69,1.3577]
[1727114520937,3.4782,143.75,143.72,3.4786]
[1727114521231,15.03,143.76,143.69,1.3577]
[1727114521429,3.4787,143.73,143.7,3.479]
[1727114522028,3.4787,143.73,143.71,3.479]
[1727114523947,3.4784,143.74,143.71,3.479]
[1727114524250,3.4784,143.74,143.72,3.4787]
[1727114526551,13.1082,143.75,143.72,3.4787]
[1727114527045,13.1084,143.74,143.72,3.4787]
[1727114527246,13.1084,143.74,143.71,3.4789]
[1727114527949,3.4785,143.73,143.71,3.4789]
[1727114528155,3.4785,143.73,143.7,3.4791]
[1727114528948,3.4788,143.72,143.7,3.4791]
[1727114529153,9.63,143.73,143.69,3.4794]
[1727114529347,9.63,143.7,143.65,1.3544]
[1727114529656,9.63,143.69,143.65,1.3544]
[1727114529860,9.63,143.69,143.66,3.48]
[1727114530152,9.63,143.69,143.65,1.3544]
[1727114530555,9.63,143.69,143.65,10.9844]
[1727114531756,13.1096,143.69,143.67,3.4799]
[1727114532347,3.51200518,143.71,143.65,10.9844]
[1727114532348,3.4793,143.7,143.65,1.3544]
[1727114532553,15.04,143.73,143.65,1.3544]
[1727114532755,15.04,143.73,143.65,2.7737]
[1727114532953,18.56899738,143.73,143.65,2.7737]
[1727114533357,3.4791,143.71,143.65,2.7737]
[1727114533751,15.04,143.75,143.66,15.04]
[1727114534059,15.04,143.75,143.69,3.4793]
[1727114534060,3.4789,143.72,143.69,3.4793]
[1727114534554,3.4789,143.72,143.7,3.4792]
[1727114535249,15.04,143.71,143.65,2.7737]
[1727114535654,3.4802,143.67,143.64,3.4807]
[1727114536347,3.4802,143.67,143.65,3.4804]
[1727114536547,3.4798,143.68,143.65,3.4804]
[1727114538056,3.4798,143.68,143.66,3.4801]
[1727114538258,15.04,143.7,143.63,1.4581]
[1727114538562,15.04,143.72,143.64,1.3443]
[1727114538754,3.4794,143.7,143.67,3.4799]
[1727114539156,18.51562674,143.72,143.64,16.3843]
[1727114539355,3.4791,143.71,143.68,3.4797]
[1727114539560,15.04,143.72,143.68,3.4797]
[1727114539761,18.44668523,143.72,143.64,1.3443]
[1727114540151,3.4796,143.69,143.66,3.4801]
[1727114540554,3.4796,143.69,143.64,1.3443]
[1727114540859,3.4796,143.69,143.66,3.48]
[1727114542054,3.4796,143.69,143.67,3.48]
[1727114542757,15.04,143.73,143.64,16.3843]
[1727114543052,3.44116002,143.72,143.64,16.3843]
[1727114543254,15.04,143.73,143.64,19.84112698]
[1727114543455,6.9542,143.79,143.64,19.84112698]
[1727114543456,15.04,143.75,143.66,15.04]
[1727114543854,3.4789,143.72,143.69,3.4793]
[1727114544471,15.04,143.77,143.71,3.479]
[1727114544765,26.970131,143.76,143.71,3.479]
[1727114544965,3.4784,143.74,143.72,3.4787]
[1727114545267,3.4784,143.74,143.68,15.04]
[1727114545656,3.4784,143.74,143.71,3.4789]
[1727114545860,15.04,143.72,143.64,1.3443]
[1727114546360,15.04,143.72,143.68,3.4797]